{"text_format":"1","workbook":"xlsx","n_sheets":1,"sheets":["Form"],"not_rendered":{"charts":0,"images":0,"macros":1,"external_links":0,"defined_names":1,"comments":0,"pivot_tables":0},"unopened":[],"bounds":{"document_bytes":16777216,"sheet_cells":100000,"rows_first":2000,"rows_last":500,"rows_between":2000,"halvings":0,"cell_chars":16384,"cell_head_chars":4096},"cells_cut":0,"cells_raw":0,"read":"whole","date_system":"1900"}

{"sheet":"Form","index":0,"n_rows":35,"n_cols":58,"rows_kept":35,"cut":false,"hidden":false,"merged":[[33,1,33,11],[34,1,34,5],[34,7,34,11],[32,9,32,11],[32,4,32,7],[32,0,32,3],[30,1,30,11],[16,7,16,8],[16,9,16,10],[16,0,16,6],[17,7,17,8],[17,9,17,10],[17,0,17,6],[12,9,12,10],[13,9,13,10],[14,9,14,10],[6,0,9,0],[15,9,15,10],[15,0,15,8],[14,5,14,6],[6,7,9,8],[6,9,9,10],[10,7,10,8],[11,7,11,8],[12,7,12,8],[13,7,13,8],[14,7,14,8],[10,9,10,10],[11,9,11,10],[14,1,14,2],[10,3,10,4],[11,3,11,4],[12,3,12,4],[14,3,14,4],[13,3,13,4],[4,5,4,7],[10,1,10,2],[11,1,11,2],[12,1,12,2],[13,1,13,2],[6,3,9,4],[13,5,13,6],[6,1,9,2],[6,5,9,6],[10,5,10,6],[11,5,11,6],[12,5,12,6]]}
[null,null,null,"New Jersey Division of Local Government Services"]
[null,"2022 County Constitutional Officer Salary Reimbursement Request",null,null,null,null,null,null,null,null,null,null,null,null,null,null,null,null,null,null,null,null,null,null,null,null,null,null,null,null,null,null,null,null,null,null,null,null,null,null,null,null,null,null,null,null,null,null,null,null,null,null,"SELECT HERE",null,null,null,null,"Current Selection"]
[null,null,null,null,null,null,null,null,null,null,null,null,null,null,null,null,null,null,null,null,null,null,null,null,null,null,null,null,null,null,null,null,null,null,null,null,null,null,null,null,null,null,null,null,null,null,null,null,null,null,null,2,"Atlantic",null,{"$f":"BA3&\" County\"","v":"Atlantic County"},null,null,{"$f":"VLOOKUP(F5,$AZ$3:$BC$23,4)","v":{"$error":"#N/A"}}]
[null,null,null,null,null,null,null,null,null,null,null,null,null,null,null,null,null,null,null,null,null,null,null,null,null,null,null,null,null,null,null,null,null,null,null,null,null,null,null,null,null,null,null,null,null,null,null,null,null,null,null,{"$f":"AZ3+1","v":3},"Bergen",null,{"$f":"BA4&\" County\"","v":"Bergen County"}]
[null,null,null,null,"County:",1,null,null,null,null,null,null,null,null,null,null,null,null,null,null,null,null,null,null,null,null,null,null,null,null,null,null,null,null,null,null,null,null,null,null,null,null,null,null,null,null,null,null,null,null,null,{"$f":"AZ4+1","v":4},"Burlington",null,"Burlington County",null,null,{"$f":"TEXT(BF3,1)","v":{"$error":"#N/A"}}]
[null,null,null,null,null,null,null,null,null,null,null,null,null,null,null,null,null,null,null,null,null,null,null,null,null,null,null,null,null,null,null,null,null,null,null,null,null,null,null,null,null,null,null,null,null,null,null,null,null,null,null,5,"Camden",null,"Camden County"]
["Position","2022 Authorized Salary",null,"Statutory\nBaseline Salary\nfor\nReimbursement",null,"2022 (Current) Statutory Salary",null,"2009\nApproved\nReimbursement",null,"2022 Reimbursement Request",null,null,null,null,null,null,null,null,null,null,null,null,null,null,null,null,null,null,null,null,null,null,null,null,null,null,null,null,null,null,null,null,null,null,null,null,null,null,null,null,null,6,"Cape May",null,"Cape May County"]
[null,null,null,null,null,null,null,null,null,null,null,null,null,null,null,null,null,null,null,null,null,null,null,null,null,null,null,null,null,null,null,null,null,null,null,null,null,null,null,null,null,null,null,null,null,null,null,null,null,null,null,7,"Cumberland",null,"Cumberland County"]
[null,null,null,null,null,null,null,null,null,null,null,null,null,null,null,null,null,null,null,null,null,null,null,null,null,null,null,null,null,null,null,null,null,null,null,null,null,null,null,null,null,null,null,null,null,null,null,null,null,null,null,8,"Essex",null,"Essex County"]
[null,null,null,null,null,null,null,null,null,null,null,null,null,null,null,null,null,null,null,null,null,null,null,null,null,null,null,null,null,null,null,null,null,null,null,null,null,null,null,null,null,null,null,null,null,null,null,null,null,null,null,9,"Gloucester",null,"Gloucester County"]
["County Prosecutor",null,null,"$100,000*",null,196238.47,null,null,null,null,null,null,null,null,null,null,null,null,null,null,null,null,null,null,null,null,null,null,null,null,null,null,null,null,null,null,null,null,null,null,null,null,null,null,null,null,null,null,null,null,null,10,"Hudson",null,"Hudson County"]
["County Clerk",null,null,96850,null,127555.01,null,null,null,null,null,null,null,null,null,null,null,null,null,null,null,null,null,null,null,null,null,null,null,null,null,null,null,null,null,null,null,null,null,null,null,null,null,null,null,null,null,null,null,null,null,11,"Hunterdon",null,"Hunterdon County"]
["Register of Deeds",null,null,96850,null,127555.01,null,null,null,null,null,null,null,null,null,null,null,null,null,null,null,null,null,null,null,null,null,null,null,null,null,null,null,null,null,null,null,null,null,null,null,null,null,null,null,null,null,null,null,null,null,12,"Mercer",null,"Mercer County"]
["Sheriff",null,null,96850,null,127555.01,null,null,null,null,null,null,null,null,null,null,null,null,null,null,null,null,null,null,null,null,null,null,null,null,null,null,null,null,null,null,null,null,null,null,null,null,null,null,null,null,null,null,null,null,null,13,"Middlesex",null,"Middlesex County"]
["Surrogate",null,null,96850,null,127555.01,null,null,null,null,null,null,null,null,null,null,null,null,null,null,null,null,null,null,null,null,null,null,null,null,null,null,null,null,null,null,null,null,null,null,null,null,null,null,null,null,null,null,null,null,null,14,"Monmouth",null,"Monmouth County"]
["Total 2022 Reimbursement",null,null,null,null,null,null,null,null,{"$f":"SUM(J11:K15)","v":0},null,null,null,null,null,null,null,null,null,null,null,null,null,null,null,null,null,null,null,null,null,null,null,null,null,null,null,null,null,null,null,null,null,null,null,null,null,null,null,null,null,15,"Morris",null,"Morris County"]
[null,null,null,null,null,null,null,"{Begin Date}",null,"{End Date}",null,null,null,null,null,null,null,null,null,null,null,null,null,null,null,null,null,null,null,null,null,null,null,null,null,null,null,null,null,null,null,null,null,null,null,null,null,null,null,null,null,16,"Ocean",null,"Ocean County"]
["Dates when a State-paid Acting Prosecutor was in place",null,null,null,null,null,null,null,null,null,null,null,null,null,null,null,null,null,null,null,null,null,null,null,null,null,null,null,null,null,null,null,null,null,null,null,null,null,null,null,null,null,null,null,null,null,null,null,null,null,null,17,"Passaic",null,"Passaic County"]
["* The statutory baseline salary for Prosecutors was set earlier than the baseline salary for other Constitutional Officers.",null,null,null,null,null,null,null,null,null,null,null,null,null,null,null,null,null,null,null,null,null,null,null,null,null,null,null,null,null,null,null,null,null,null,null,null,null,null,null,null,null,null,null,null,null,null,null,null,null,null,18,"Salem",null,"Salem County"]
[null,null,null,null,null,null,null,null,null,null,null,null,null,null,null,null,null,null,null,null,null,null,null,null,null,null,null,null,null,null,null,null,null,null,null,null,null,null,null,null,null,null,null,null,null,null,null,null,null,null,null,19,"Somerset",null,"Somerset County"]
["Reimbursement requirements and limitations:",null,null,null,null,null,null,null,null,null,null,null,null,null,null,null,null,null,null,null,null,null,null,null,null,null,null,null,null,null,null,null,null,null,null,null,null,null,null,null,null,null,null,null,null,null,null,null,null,null,null,20,"Sussex",null,"Sussex County"]
["   ●   Approved salaries must be authorized by Salary Resolution.",null,null,null,null,null,null,null,null,null,null,null,null,null,null,null,null,null,null,null,null,null,null,null,null,null,null,null,null,null,null,null,null,null,null,null,null,null,null,null,null,null,null,null,null,null,null,null,null,null,null,21,"Union",null,"Union County"]
["   ●   Salaries paid in excess of each year’s statutorily required amount are not eligible for reimbursement.",null,null,null,null,null,null,null,null,null,null,null,null,null,null,null,null,null,null,null,null,null,null,null,null,null,null,null,null,null,null,null,null,null,null,null,null,null,null,null,null,null,null,null,null,null,null,null,null,null,null,22,"Warren",null,"Warren County"]
["   ●   Reimbursement limited to Prosecutors paid by the county and not by the State."]
["   ●   CFO should reference prior year submissions for verification of amounts."]
[]
["The County Chief Financial Officer must make the following certification:",null,null,null,null,null,null,null,null,null,null,null,null,null,null,null,null,null,null,null,null,null,null,null,null,null,null,null,null,null,null,null,null,null,null,null,null,null,null,null,null,null,null,null,null,null,null,null,null,null,null,false]
["I hereby certify that the foregoing amounts accurately reflect the salaries of the Constitutional Officers and County Prosecutor "]
["for 2009 and the reimbursement for 2022 as of this date:"]
[]
[]
[]
["Name of County Chief Financial Officer:",null,null,null,null,null,null,null,"Cert #:"]
["Date:"]
["Phone:",null,null,null,null,null,"Email:"]